[Event "SS Manhem Chess Week GM and IM tournaments 2018"]
[Site "Molnlycke kulturhus, Biblioteksgatan 2, Molnlycke, Sweden"]
[Date "2018.08.15"]
[Round "7.5"]
[White "Gritsak, Orest"]
[Black "Schneider, Stefan"]
[Result "1-0"]
[TimeControl "90 minutes for 40 moves + 30 minutes for the rest of the game + 30 seconds per move from move one."]
[WhiteTitle "GM"]
[BlackTitle "IM"]
[WhiteFideId "14102188"]
[BlackFideId "1703013"]
[WhiteElo "2464"]
[BlackElo "2399"]

1. d4 {[%clk 01:29:51]} {[%emt 00:01:08]} Nf6 {[%clk 01:30:39]} {[%emt
00:00:22]} 2. c4 {[%clk 01:30:14]} {[%emt 00:00:08]} e6 {[%clk 01:30:48]}
{[%emt 00:00:21]} 3. Nc3 {[%clk 01:30:35]} {[%emt 00:00:08]} Bb4 {[%clk
01:31:16]} {[%emt 00:00:03]} 4. Qc2 {[%clk 01:30:56]} {[%emt 00:00:08]} O-O
{[%clk 01:30:36]} {[%emt 00:01:11]} 5. a3 {[%clk 01:31:07]} {[%emt 00:00:19]}
Bxc3+ {[%clk 01:30:57]} {[%emt 00:00:08]} 6. Qxc3 {[%clk 01:31:32]} {[%emt
00:00:05]} b6 {[%clk 01:30:48]} {[%emt 00:00:39]} 7. Bg5 {[%clk 01:31:42]}
{[%emt 00:00:19]} Ba6 {[%clk 01:29:44]} {[%emt 00:01:35]} 8. Qf3 {[%clk
01:28:03]} {[%emt 00:04:09]} Nc6 {[%clk 01:29:23]} {[%emt 00:00:51]} 9. e3
{[%clk 01:23:53]} {[%emt 00:04:39]} h6 {[%clk 01:17:10]} {[%emt 00:12:44]} 10.
Bxf6 {[%clk 01:22:47]} {[%emt 00:01:36]} Qxf6 {[%clk 01:17:21]} {[%emt
00:00:19]} 11. Qxf6 {[%clk 01:23:11]} {[%emt 00:00:06]} gxf6 {[%clk 01:17:31]}
{[%emt 00:00:19]} 12. Nh3 {[%clk 01:16:45]} {[%emt 00:06:56]} Ne7 {[%clk
01:06:03]} {[%emt 00:11:58]} 13. Nf4 {[%clk 01:15:51]} {[%emt 00:01:24]} f5
{[%clk 01:05:13]} {[%emt 00:01:20]} 14. Be2 {[%clk 01:01:01]} {[%emt 00:15:19]}
Bb7 {[%clk 01:02:00]} {[%emt 00:03:44]} 15. f3 {[%clk 01:00:12]} {[%emt
00:01:18]} a5 {[%clk 00:49:47]} {[%emt 00:12:43]} 16. Kf2 {[%clk 00:53:54]}
{[%emt 00:06:48]} a4 {[%clk 00:42:45]} {[%emt 00:07:33]} 17. Rhg1 {[%clk
00:47:31]} {[%emt 00:06:53]} f6 {[%clk 00:23:22]} {[%emt 00:19:54]} 18. g4
{[%clk 00:43:32]} {[%emt 00:04:29]} Kf7 {[%clk 00:23:20]} {[%emt 00:00:32]} 19.
gxf5 {[%clk 00:43:14]} {[%emt 00:00:48]} Nxf5 {[%clk 00:23:47]} {[%emt
00:00:03]} 20. Bd3 {[%clk 00:43:30]} {[%emt 00:00:13]} Ne7 {[%clk 00:20:45]}
{[%emt 00:03:32]} 21. Rg3 {[%clk 00:32:10]} {[%emt 00:11:50]} Rg8 {[%clk
00:14:11]} {[%emt 00:07:04]} 22. Rh3 {[%clk 00:30:15]} {[%emt 00:02:25]} c5
{[%clk 00:07:19]} {[%emt 00:07:23]} 23. d5 {[%clk 00:21:51]} {[%emt 00:08:53]}
Rh8 {[%clk 00:03:50]} {[%emt 00:03:58]} 24. Rg1 {[%clk 00:21:18]} {[%emt
00:01:03]} f5 {[%clk 00:02:34]} {[%emt 00:01:47]} 25. Rhg3 {[%clk 00:18:58]}
{[%emt 00:02:49]} Rhg8 {[%clk 00:02:12]} {[%emt 00:00:52]} 26. Rxg8 {[%clk
00:17:27]} {[%emt 00:02:01]} Rxg8 {[%clk 00:01:32]} {[%emt 00:01:11]} 27. Rxg8
{[%clk 00:16:13]} {[%emt 00:01:43]} Nxg8 {[%clk 00:02:00]} {[%emt 00:00:02]} 28.
dxe6+ {[%clk 00:11:22]} {[%emt 00:05:21]} dxe6 {[%clk 00:02:28]} {[%emt
00:00:02]} 29. Ne2 {[%clk 00:11:47]} {[%emt 00:00:05]} Nf6 {[%clk 00:01:16]}
{[%emt 00:01:42]} 30. Nc3 {[%clk 00:12:12]} {[%emt 00:00:04]} Nd7 {[%clk
00:01:17]} {[%emt 00:00:29]} 31. Nxa4 {[%clk 00:12:29]} {[%emt 00:00:14]} Kf6
{[%clk 00:01:12]} {[%emt 00:00:36]} 32. b4 {[%clk 00:10:38]} {[%emt 00:02:21]}
cxb4 {[%clk 00:00:57]} {[%emt 00:00:46]} 33. axb4 {[%clk 00:11:04]} {[%emt
00:00:04]} Bc6 {[%clk 00:00:52]} {[%emt 00:00:35]} 34. Nc3 {[%clk 00:10:44]}
{[%emt 00:00:49]} Ke7 {[%clk 00:00:54]} {[%emt 00:00:29]} 35. f4 {[%clk
00:08:48]} {[%emt 00:02:26]} Kf6 {[%clk 00:00:57]} {[%emt 00:00:27]} 36. Be2
{[%clk 00:05:39]} {[%emt 00:03:39]} e5 {[%clk 00:00:36]} {[%emt 00:00:51]} 37.
Bh5 {[%clk 00:05:44]} {[%emt 00:00:24]} Ke7 {[%clk 00:00:32]} {[%emt 00:00:35]}
38. Bg6 {[%clk 00:05:24]} {[%emt 00:00:49]} Kf6 {[%clk 00:00:51]} {[%emt
00:00:12]} 39. Be8 {[%clk 00:05:39]} {[%emt 00:00:15]} exf4 {[%clk 00:00:32]}
{[%emt 00:00:49]} 40. exf4 {[%clk 00:05:40]} {[%emt 00:00:28]} Ke7 {[%clk
00:00:48]} {[%emt 00:00:14]} 41. Bxd7 {[%clk 00:05:20]} {[%emt 00:00:50]} Kxd7
{[%clk 00:00:55]} {[%emt 00:00:23]} 42. Ke3 {[%clk 00:05:08]} {[%emt 00:00:42]}
Kd6 {[%clk 00:00:40]} {[%emt 00:00:45]} 43. Kd4 {[%clk 00:30:14]} {[%emt
00:05:25]} 1-0

[Event "SS Manhem Chess Week GM and IM tournaments 2018"]
[Site "Molnlycke kulturhus, Biblioteksgatan 2, Molnlycke, Sweden"]
[Date "2018.08.15"]
[Round "7.6"]
[White "Rydstrom, Tom"]
[Black "Vypkhaniuk, Ihor"]
[Result "1/2-1/2"]
[TimeControl "90 minutes for 40 moves + 30 minutes for the rest of the game + 30 seconds per move from move one."]
[WhiteTitle "FM"]
[BlackTitle "FM"]
[WhiteFideId "1714830"]
[BlackFideId "14112256"]
[WhiteElo "2316"]
[BlackElo "2357"]

1. Nc3 {[%clk 01:29:29]} {[%emt 00:01:29]} d5 {[%clk 01:28:44]} {[%emt
00:02:16]} 2. d4 {[%clk 01:29:55]} {[%emt 00:00:05]} c6 {[%clk 01:25:10]}
{[%emt 00:04:04]} 3. e4 {[%clk 01:29:54]} {[%emt 00:00:31]} dxe4 {[%clk
01:23:38]} {[%emt 00:02:02]} 4. Nxe4 {[%clk 01:30:19]} {[%emt 00:00:05]} Nd7
{[%clk 01:23:52]} {[%emt 00:00:16]} 5. Nf3 {[%clk 01:29:04]} {[%emt 00:01:46]}
Ngf6 {[%clk 01:23:56]} {[%emt 00:00:26]} 6. Nxf6+ {[%clk 01:22:48]} {[%emt
00:06:46]} Nxf6 {[%clk 01:23:46]} {[%emt 00:00:39]} 7. Bc4 {[%clk 01:22:20]}
{[%emt 00:00:59]} Bf5 {[%clk 01:19:28]} {[%emt 00:04:48]} 8. c3 {[%clk
01:18:24]} {[%emt 00:04:25]} e6 {[%clk 01:18:47]} {[%emt 00:01:11]} 9. Qe2
{[%clk 01:16:54]} {[%emt 00:02:00]} Bg4 {[%clk 01:15:43]} {[%emt 00:03:34]} 10.
h3 {[%clk 01:16:49]} {[%emt 00:00:35]} Bxf3 {[%clk 01:13:29]} {[%emt 00:02:45]}
11. Qxf3 {[%clk 01:17:16]} {[%emt 00:00:03]} Nd5 {[%clk 01:12:21]} {[%emt
00:01:38]} 12. Bd2 {[%clk 01:16:59]} {[%emt 00:00:47]} Bd6 {[%clk 01:02:06]}
{[%emt 00:10:45]} 13. g3 {[%clk 01:17:01]} {[%emt 00:00:28]} Be7 {[%clk
00:53:46]} {[%emt 00:08:50]} 14. h4 {[%clk 01:17:19]} {[%emt 00:00:12]} a5
{[%clk 00:53:08]} {[%emt 00:01:09]} 15. a3 {[%clk 01:09:14]} {[%emt 00:08:35]}
Qb6 {[%clk 00:47:38]} {[%emt 00:05:59]} 16. O-O {[%clk 00:57:08]} {[%emt
00:12:36]} Qxb2 {[%clk 00:34:38]} {[%emt 00:13:30]} 17. Qe2 {[%clk 00:57:27]}
{[%emt 00:00:11]} Qb6 {[%clk 00:25:31]} {[%emt 00:09:37]} 18. Rfb1 {[%clk
00:57:20]} {[%emt 00:00:37]} Qc7 {[%clk 00:24:10]} {[%emt 00:01:51]} 19. Bxd5
{[%clk 00:57:45]} {[%emt 00:00:06]} cxd5 {[%clk 00:24:05]} {[%emt 00:00:34]} 20.
Qb5+ {[%clk 00:58:06]} {[%emt 00:00:09]} Qc6 {[%clk 00:22:03]} {[%emt
00:02:32]} 21. Qxb7 {[%clk 00:58:31]} {[%emt 00:00:05]} Qxb7 {[%clk 00:20:19]}
{[%emt 00:02:14]} 22. Rxb7 {[%clk 00:58:54]} {[%emt 00:00:06]} Bd6 {[%clk
00:19:17]} {[%emt 00:01:31]} 23. a4 {[%clk 00:58:46]} {[%emt 00:00:39]} h5
{[%clk 00:17:16]} {[%emt 00:02:30]} 24. Rab1 {[%clk 00:58:46]} {[%emt
00:00:31]} O-O {[%clk 00:16:48]} {[%emt 00:00:58]} 25. R1b5 {[%clk 00:55:21]}
{[%emt 00:03:55]} Rfb8 {[%clk 00:09:08]} {[%emt 00:08:10]} 26. Kf1 {[%clk
00:54:07]} {[%emt 00:01:44]} Rxb7 {[%clk 00:06:47]} {[%emt 00:02:53]} 27. Rxb7
{[%clk 00:54:32]} {[%emt 00:00:05]} Ra6 {[%clk 00:05:55]} {[%emt 00:01:21]} 28.
Ke2 {[%clk 00:54:50]} {[%emt 00:00:12]} Rc6 {[%clk 00:04:53]} {[%emt 00:01:32]}
29. Ra7 {[%clk 00:37:22]} {[%emt 00:17:58]} Bc7 {[%clk 00:05:21]} {[%emt
00:00:02]} 30. Kd3 {[%clk 00:37:27]} {[%emt 00:00:24]} Rc4 {[%clk 00:03:38]}
{[%emt 00:02:13]} 31. Kc2 {[%clk 00:32:33]} {[%emt 00:05:24]} Kf8 {[%clk
00:02:18]} {[%emt 00:01:51]} 32. Kb3 {[%clk 00:32:55]} {[%emt 00:00:08]} f6
{[%clk 00:01:37]} {[%emt 00:01:11]} 33. Bf4 {[%clk 00:29:47]} {[%emt 00:03:37]}
e5 {[%clk 00:01:55]} {[%emt 00:00:13]} 34. Be3 {[%clk 00:30:03]} {[%emt
00:00:14]} Rc6 {[%clk 00:01:05]} {[%emt 00:01:19]} 35. Bc1 {[%clk 00:15:33]}
{[%emt 00:15:00]} exd4 {[%clk 00:00:33]} {[%emt 00:01:03]} 36. Ba3+ {[%clk
00:15:06]} {[%emt 00:00:57]} Kf7 {[%clk 00:00:37]} {[%emt 00:00:27]} 37. cxd4
{[%clk 00:15:32]} {[%emt 00:00:03]} Ke6 {[%clk 00:00:41]} {[%emt 00:00:26]} 38.
Bc5 {[%clk 00:14:56]} {[%emt 00:01:06]} g5 {[%clk 00:00:34]} {[%emt 00:00:37]}
39. Rb7 {[%clk 00:03:13]} {[%emt 00:12:12]} Kf5 {[%clk 00:00:36]} {[%emt
00:00:29]} 40. Rb5 {[%clk 00:03:04]} {[%emt 00:00:39]} gxh4 {[%clk 00:00:35]}
{[%emt 00:00:30]} 41. gxh4 {[%clk 00:02:43]} {[%emt 00:00:49]} Ke4 {[%clk
00:00:35]} {[%emt 00:00:32]} 42. Kc3 {[%clk 00:27:05]} {[%emt 00:06:08]} f5
{[%clk 00:27:56]} {[%emt 00:03:09]} 43. Kd2 {[%clk 00:27:01]} {[%emt 00:00:33]}
f4 {[%clk 00:25:34]} {[%emt 00:02:53]} 44. Rb3 {[%clk 00:24:42]} {[%emt
00:02:50]} f3 {[%clk 00:17:50]} {[%emt 00:08:14]} 45. Re3+ {[%clk 00:18:09]}
{[%emt 00:07:03]} Kf4 {[%clk 00:18:11]} {[%emt 00:00:10]} 46. Re7 {[%clk
00:15:36]} {[%emt 00:03:02]} Bd8 {[%clk 00:14:26]} {[%emt 00:04:15]} 47. Rf7+
{[%clk 00:11:51]} {[%emt 00:04:14]} Kg4 {[%clk 00:12:57]} {[%emt 00:01:59]} 48.
Rg7+ {[%clk 00:12:12]} {[%emt 00:00:10]} Kf4 {[%clk 00:11:15]} {[%emt
00:02:11]} 49. Rf7+ {[%clk 00:10:45]} {[%emt 00:01:57]} Ke4 {[%clk 00:09:13]}
{[%emt 00:02:32]} 50. Rh7 {[%clk 00:09:35]} {[%emt 00:01:40]} Bxh4 {[%clk
00:09:20]} {[%emt 00:00:23]} 51. Rxh5 {[%clk 00:09:49]} {[%emt 00:00:16]} Bxf2
{[%clk 00:09:08]} {[%emt 00:00:42]} 52. Re5+ {[%clk 00:10:17]} {[%emt
00:00:02]} Kf4 {[%clk 00:09:32]} {[%emt 00:00:06]} 53. Rxd5 {[%clk 00:10:45]}
{[%emt 00:00:03]} Re6 {[%clk 00:07:08]} {[%emt 00:02:53]} 54. Rd7 {[%clk
00:10:23]} {[%emt 00:00:51]} Be1+ {[%clk 00:06:51]} {[%emt 00:00:47]} 55. Kd3
{[%clk 00:09:42]} {[%emt 00:01:12]} Re3+ {[%clk 00:06:28]} {[%emt 00:00:53]} 56.
Kc4 {[%clk 00:09:38]} {[%emt 00:00:35]} Rc3+ {[%clk 00:03:21]} {[%emt
00:03:37]} 57. Kb5 {[%clk 00:07:36]} {[%emt 00:02:32]} f2 {[%clk 00:02:28]}
{[%emt 00:01:23]} 58. Rf7+ {[%clk 00:08:04]} {[%emt 00:00:02]} Ke4 {[%clk
00:02:11]} {[%emt 00:00:48]} 59. d5 {[%clk 00:08:32]} {[%emt 00:00:02]} Kxd5
{[%clk 00:02:11]} {[%emt 00:00:30]} 60. Bxf2 {[%clk 00:09:00]} {[%emt
00:00:02]} Rb3+ {[%clk 00:02:15]} {[%emt 00:00:26]} 61. Ka6 {[%clk 00:09:29]}
{[%emt 00:00:01]} Bb4 {[%clk 00:01:39]} {[%emt 00:01:06]} 1/2-1/2

[Event "SS Manhem Chess Week GM and IM tournaments 2018"]
[Site "Molnlycke kulturhus, Biblioteksgatan 2, Molnlycke, Sweden"]
[Date "2018.08.15"]
[Round "7.7"]
[White "Storme, Isak"]
[Black "Mikalsen, Erlend"]
[Result "0-1"]
[TimeControl "90 minutes for 40 moves + 30 minutes for the rest of the game + 30 seconds per move from move one."]
[WhiteTitle "FM"]
[BlackTitle "FM"]
[WhiteFideId "1728113"]
[BlackFideId "1507338"]
[WhiteElo "2279"]
[BlackElo "2289"]

1. e4 {[%clk 01:30:57]} {[%emt 00:00:03]} c5 {[%clk 01:30:43]} {[%emt
00:00:17]} 2. Nf3 {[%clk 01:31:18]} {[%emt 00:00:10]} d6 {[%clk 01:31:09]}
{[%emt 00:00:04]} 3. d4 {[%clk 01:31:43]} {[%emt 00:00:06]} cxd4 {[%clk
01:31:37]} {[%emt 00:00:02]} 4. Nxd4 {[%clk 01:32:01]} {[%emt 00:00:12]} Nf6
{[%clk 01:32:03]} {[%emt 00:00:03]} 5. Nc3 {[%clk 01:32:23]} {[%emt 00:00:08]}
Nc6 {[%clk 01:32:22]} {[%emt 00:00:11]} 6. Bg5 {[%clk 01:32:24]} {[%emt
00:00:27]} e6 {[%clk 01:32:41]} {[%emt 00:00:12]} 7. Qd2 {[%clk 01:32:36]}
{[%emt 00:00:18]} a6 {[%clk 01:33:03]} {[%emt 00:00:08]} 8. O-O-O {[%clk
01:32:45]} {[%emt 00:00:21]} h6 {[%clk 01:31:46]} {[%emt 00:01:47]} 9. Nxc6
{[%clk 01:27:55]} {[%emt 00:05:22]} bxc6 {[%clk 01:32:11]} {[%emt 00:00:04]} 10.
Bf4 {[%clk 01:27:56]} {[%emt 00:00:30]} d5 {[%clk 01:32:35]} {[%emt 00:00:06]}
11. Qe3 {[%clk 01:24:02]} {[%emt 00:04:22]} Be7 {[%clk 01:32:30]} {[%emt
00:00:36]} 12. Kb1 {[%clk 01:20:02]} {[%emt 00:04:30]} a5 {[%clk 01:28:33]}
{[%emt 00:04:27]} 13. h4 {[%clk 01:05:57]} {[%emt 00:14:35]} Ba6 {[%clk
01:25:35]} {[%emt 00:03:28]} 14. exd5 {[%clk 00:56:10]} {[%emt 00:10:17]} cxd5
{[%clk 01:21:41]} {[%emt 00:04:24]} 15. Nb5 {[%clk 00:50:07]} {[%emt 00:06:33]}
Rc8 {[%clk 01:10:08]} {[%emt 00:12:03]} 16. Nc7+ {[%clk 00:45:58]} {[%emt
00:04:39]} Rxc7 {[%clk 01:10:30]} {[%emt 00:00:07]} 17. Bxc7 {[%clk 00:46:22]}
{[%emt 00:00:07]} Qxc7 {[%clk 01:10:57]} {[%emt 00:00:03]} 18. Bxa6 {[%clk
00:46:43]} {[%emt 00:00:09]} O-O {[%clk 01:11:17]} {[%emt 00:00:10]} 19. f3
{[%clk 00:42:15]} {[%emt 00:04:58]} Rb8 {[%clk 01:08:59]} {[%emt 00:02:48]} 20.
a4 {[%clk 00:30:28]} {[%emt 00:12:17]} Rb4 {[%clk 01:08:27]} {[%emt 00:01:02]}
21. c3 {[%clk 00:27:51]} {[%emt 00:03:07]} Rxa4 {[%clk 01:05:58]} {[%emt
00:02:59]} 22. Bb5 {[%clk 00:26:04]} {[%emt 00:02:16]} Rf4 {[%clk 01:06:25]}
{[%emt 00:00:03]} 23. g3 {[%clk 00:23:42]} {[%emt 00:02:52]} Rf5 {[%clk
01:06:48]} {[%emt 00:00:07]} 24. g4 {[%clk 00:22:41]} {[%emt 00:01:31]} Re5
{[%clk 01:00:25]} {[%emt 00:06:52]} 25. Qd3 {[%clk 00:22:41]} {[%emt 00:00:29]}
Bc5 {[%clk 01:00:32]} {[%emt 00:00:24]} 26. Rde1 {[%clk 00:20:06]} {[%emt
00:03:05]} Rxe1+ {[%clk 01:00:35]} {[%emt 00:00:28]} 27. Rxe1 {[%clk 00:20:30]}
{[%emt 00:00:05]} Qg3 {[%clk 01:00:52]} {[%emt 00:00:12]} 28. Rh1 {[%clk
00:20:23]} {[%emt 00:00:36]} h5 {[%clk 00:57:31]} {[%emt 00:03:52]} 29. g5
{[%clk 00:20:05]} {[%emt 00:00:48]} Nh7 {[%clk 00:57:57]} {[%emt 00:00:05]} 30.
f4 {[%clk 00:14:50]} {[%emt 00:05:44]} Qxf4 {[%clk 00:57:50]} {[%emt 00:00:37]}
31. Rf1 {[%clk 00:12:57]} {[%emt 00:02:22]} Qxh4 {[%clk 00:54:13]} {[%emt
00:04:08]} 32. g6 {[%clk 00:09:34]} {[%emt 00:03:53]} fxg6 {[%clk 00:52:56]}
{[%emt 00:01:47]} 33. Qxg6 {[%clk 00:06:55]} {[%emt 00:03:08]} Qe4+ {[%clk
00:53:04]} {[%emt 00:00:22]} 34. Bd3 {[%clk 00:06:36]} {[%emt 00:00:49]} Qxg6
{[%clk 00:53:23]} {[%emt 00:00:11]} 35. Bxg6 {[%clk 00:07:01]} {[%emt
00:00:05]} Nf6 {[%clk 00:51:11]} {[%emt 00:02:42]} 36. Re1 {[%clk 00:05:45]}
{[%emt 00:01:44]} h4 {[%clk 00:50:27]} {[%emt 00:01:15]} 37. Rxe6 {[%clk
00:06:10]} {[%emt 00:00:06]} h3 {[%clk 00:50:32]} {[%emt 00:00:25]} 38. Rxf6
{[%clk 00:05:49]} {[%emt 00:00:51]} gxf6 {[%clk 00:50:58]} {[%emt 00:00:04]} 39.
Bf5 {[%clk 00:03:53]} {[%emt 00:02:26]} h2 {[%clk 00:51:13]} {[%emt 00:00:15]}
40. Be6+ {[%clk 00:04:18]} {[%emt 00:00:05]} Kg7 {[%clk 00:51:12]} {[%emt
00:00:30]} 41. Bxd5 {[%clk 00:04:09]} {[%emt 00:00:39]} Kg6 {[%clk 00:51:18]}
{[%emt 00:00:24]} 42. b4 {[%clk 00:01:36]} {[%emt 00:03:02]} Bxb4 {[%clk
00:51:15]} {[%emt 00:00:34]} 43. cxb4 {[%clk 00:28:29]} {[%emt 00:03:37]} axb4
{[%clk 01:21:37]} {[%emt 00:00:07]} 44. Kb2 {[%clk 00:28:02]} {[%emt 00:00:57]}
Kf5 {[%clk 01:20:24]} {[%emt 00:01:43]} 45. Kb3 {[%clk 00:28:27]} {[%emt
00:00:05]} Kf4 {[%clk 01:20:39]} {[%emt 00:00:15]} 46. Kxb4 {[%clk 00:27:56]}
{[%emt 00:01:02]} Ke3 {[%clk 01:21:05]} {[%emt 00:00:04]} 47. Kc3 {[%clk
00:26:45]} {[%emt 00:01:41]} f5 {[%clk 01:21:30]} {[%emt 00:00:05]} 48. Kc2
{[%clk 00:26:36]} {[%emt 00:00:38]} f4 {[%clk 01:21:57]} {[%emt 00:00:04]} 0-1

[Event "SS Manhem Chess Week GM and IM tournaments 2018"]
[Site "Molnlycke kulturhus, Biblioteksgatan 2, Molnlycke, Sweden"]
[Date "2018.08.15"]
[Round "7.8"]
[White "Pantzar, Milton"]
[Black "Hobber, Anders"]
[Result "0-1"]
[TimeControl "90 minutes for 40 moves + 30 minutes for the rest of the game + 30 seconds per move from move one."]
[WhiteTitle "FM"]
[BlackTitle "FM"]
[WhiteFideId "1721003"]
[BlackFideId "1505424"]
[WhiteElo "2306"]
[BlackElo "2314"]

1. Nf3 {[%clk 01:30:57]} {[%emt 00:00:03]} d5 {[%clk 01:26:29]} {[%emt
00:04:31]} 2. g3 {[%clk 01:30:53]} {[%emt 00:00:34]} c6 {[%clk 01:26:06]}
{[%emt 00:00:52]} 3. Bg2 {[%clk 01:30:54]} {[%emt 00:00:29]} Bg4 {[%clk
01:26:04]} {[%emt 00:00:32]} 4. c4 {[%clk 01:30:28]} {[%emt 00:00:57]} e6
{[%clk 01:25:58]} {[%emt 00:00:35]} 5. O-O {[%clk 01:27:19]} {[%emt 00:03:39]}
Nf6 {[%clk 01:23:01]} {[%emt 00:03:26]} 6. d4 {[%clk 01:22:56]} {[%emt
00:04:54]} Be7 {[%clk 01:20:15]} {[%emt 00:03:16]} 7. Ne5 {[%clk 01:22:32]}
{[%emt 00:00:55]} Bf5 {[%clk 01:19:55]} {[%emt 00:00:50]} 8. Nc3 {[%clk
01:17:55]} {[%emt 00:05:07]} O-O {[%clk 01:16:35]} {[%emt 00:03:49]} 9. Bf4
{[%clk 01:05:35]} {[%emt 00:12:51]} Nbd7 {[%clk 01:14:10]} {[%emt 00:02:55]} 10.
Qb3 {[%clk 01:01:44]} {[%emt 00:04:21]} Nxe5 {[%clk 01:06:15]} {[%emt
00:08:23]} 11. dxe5 {[%clk 01:00:18]} {[%emt 00:01:59]} Nd7 {[%clk 01:06:04]}
{[%emt 00:00:40]} 12. e4 {[%clk 00:43:15]} {[%emt 00:17:34]} Nc5 {[%clk
01:03:38]} {[%emt 00:02:55]} 13. Qc2 {[%clk 00:42:56]} {[%emt 00:00:50]} dxe4
{[%clk 00:52:34]} {[%emt 00:11:33]} 14. Qe2 {[%clk 00:40:34]} {[%emt 00:02:52]}
Qd3 {[%clk 00:49:42]} {[%emt 00:03:22]} 15. Rfe1 {[%clk 00:40:02]} {[%emt
00:01:02]} e3 {[%clk 00:37:37]} {[%emt 00:12:35]} 16. Bxe3 {[%clk 00:29:19]}
{[%emt 00:11:14]} Qxe2 {[%clk 00:36:57]} {[%emt 00:01:10]} 17. Rxe2 {[%clk
00:29:42]} {[%emt 00:00:08]} Rfd8 {[%clk 00:31:07]} {[%emt 00:06:18]} 18. b3
{[%clk 00:22:56]} {[%emt 00:07:17]} Rd3 {[%clk 00:29:17]} {[%emt 00:02:19]} 19.
Rc1 {[%clk 00:19:39]} {[%emt 00:03:48]} Rad8 {[%clk 00:27:28]} {[%emt
00:02:18]} 20. Ree1 {[%clk 00:19:05]} {[%emt 00:01:05]} Nd7 {[%clk 00:21:52]}
{[%emt 00:06:06]} 21. Bxa7 {[%clk 00:11:04]} {[%emt 00:08:32]} Bb4 {[%clk
00:09:14]} {[%emt 00:13:06]} 22. Red1 {[%clk 00:07:06]} {[%emt 00:04:29]} Nxe5
{[%clk 00:07:52]} {[%emt 00:01:52]} 23. Bb6 {[%clk 00:06:01]} {[%emt 00:01:34]}
R8d7 {[%clk 00:06:54]} {[%emt 00:01:29]} 24. Rxd3 {[%clk 00:04:18]} {[%emt
00:02:14]} Nxd3 {[%clk 00:06:15]} {[%emt 00:01:09]} 25. Rc2 {[%clk 00:04:46]}
{[%emt 00:00:02]} Ne5 {[%clk 00:04:07]} {[%emt 00:02:37]} 26. Be4 {[%clk
00:03:50]} {[%emt 00:01:26]} Nf3+ {[%clk 00:04:12]} {[%emt 00:00:25]} 27. Bxf3
{[%clk 00:00:53]} {[%emt 00:03:27]} Bxc2 {[%emt 00:01:13]} 0-1